[Event "8. Arber-Schachopen 2019"]
[Site "Bodenmais"]
[Date "2019.08.04"]
[Round "9.16"]
[White "Hoffmann, Tim"]
[Black "Kolb, Wolfgang"]
[Result "1-0"]
[ECO "B12"]
[WhiteElo "2147"]
[BlackElo "2099"]
[Annotator "ChessBase"]
[PlyCount "115"]
[EventDate "2019.07.27"]
[EventCountry "GER"]
[SourceTitle "playchess.com"]
[Source "ChessBase"]
[SourceQuality "1"]
[TimeControl "40/5400+30:1800+30"]

1. e4 {[%emt 0:00:00]} c6 {[%emt 0:00:00]} 2. d4 {[%emt 0:00:00]} d5 {[%emt 0:00:00]} 3. e5 {[%emt 0:00:00]} c5 {[%emt 0:00:00]} 4. dxc5 {[%emt 0:00:08]} Nc6 {[%emt 0:00:14]} 5. Nf3 {[%emt 0:00:55]} Bg4 {[%emt 0:00:09]} 6. c3 {[%emt 0:00:56]} e6 {[%emt 0:00:56]} 7. Be3 {[%emt 0:00:51]} Bxf3 {[%emt 0:07:54]} 8. Qxf3 {[%emt 0:00:40]} Nxe5 {[%emt 0:01:00]} 9. Bb5+ {[%emt 0:04:18]} Nc6 {[%emt 0:00:14]} 10. O-O {[%emt 0:00:27]} Nge7 {[%emt 0:02:24]} 11. c4 {[%emt 0:03:31]} a6 {[%emt 0:13:47]} 12. Ba4 {[%emt 0:01:24]} Qa5 {[%emt 0:00:11]} 13. Nc3 {[%emt 0:01:30]} Rd8 {[%emt 0:00:19]} 14. Rad1 {[%emt 0:03:02]} dxc4 {[%emt 0:21:17]} 15. Rxd8+ {[%emt 0:01:43]} Qxd8 {[%emt 0:00:16]} 16. Rd1 {[%emt 0:00:27]} Qc8 {[%emt 0:00:16]} 17. Rd6 {[%emt 0:15:15]} f6 {[%emt 0:14:21]} 18. Ne4 {[%emt 0:10:09]} Nd5 {[%emt 0:01:44]} 19. Qh3 {[%emt 0:14:24]} f5 {[%emt 0:01:24]} 20. Bg5 {[%emt 0:00:55]} fxe4 {[%emt 0:14:46]} 21. Rxe6+ {[%emt 0:21:49]} Be7 {[%emt 0:01:54]} 22. Qf5 {[%emt 0:05:11]} Qd7 {[%emt 0:01:50]} 23. Qxe4 {[%emt 0:01:06]} Kf7 {[%emt 0:01:09]} 24. Bxe7 {[%emt 0:05:58]} Ndxe7 {[%emt 0:00:59]} 25. Rd6 {[%emt 0:00:39]} Qf5 {[%emt 0:02:07]} 26. Qxc4+ {[%emt 0:00:07]} Ke8 {[%emt 0:00:44]} 27. h3 {[%emt 0:03:16]} Qe5 {[%emt 0:05:34]} 28. Qd3 {[%emt 0:01:28]} Qe1+ {[%emt 0:03:21]} 29. Kh2 Qe5+ {[%emt 0:00:06]} 30. g3 {[%emt 0:01:06]} Kf8 {[%emt 0:00:59]} 31. Rd8+ {[%emt 0:01:31]} Nxd8 {[%emt 0:00:20]} 32. Qxd8+ {[%emt 0:00:05]} Kf7 {[%emt 0:00:07]} 33. Bb3+ {[%emt 0:00:09]} Kg6 {[%emt 0:01:06]} 34. Qxh8 {[%emt 0:00:04]} Qxc5 {[%emt 0:00:29]} 35. Qe8+ {[%emt 0:00:25]} Kh6 {[%emt 0:00:27]} 36. Qf8 {[%emt 0:00:24]} Qe5 {[%emt 0:01:26]} 37. Kg2 {[%emt 0:01:46]} Ng6 {[%emt 0:00:35]} 38. Qf3 {[%emt 0:00:37]} b6 {[%emt 0:03:11]} 39. Bc2 {[%emt 0:00:44]} Ne7 {[%emt 0:01:02]} 40. Be4 {[%emt 0:00:47]} Qxb2 {[%emt 0:00:47]} 41. Qe3+ {[%emt 0:01:57]} g5 {[%emt 0:01:24]} 42. h4 {[%emt 0:00:16]} Qf6 {[%emt 0:00:20]} 43. hxg5+ {[%emt 0:00:10]} Qxg5 {[%emt 0:00:07]} 44. Qxb6+ {[%emt 0:00:06]} Kg7 {[%emt 0:00:37]} 45. Qxa6 {[%emt 0:00:26]} Qe5 {[%emt 0:00:27]} 46. Qd3 {[%emt 0:00:24]} Ng6 {[%emt 0:00:42]} 47. a4 {[%emt 0:00:38]} Qg5 {[%emt 0:00:43]} 48. Qd7+ {[%emt 0:01:07]} Kh6 {[%emt 0:00:19]} 49. Qd6 {[%emt 0:02:25]} Qa5 {[%emt 0:00:50]} 50. Qc6 {[%emt 0:02:49]} Qb4 {[%emt 0:00:36]} 51. Bf3 {[%emt 0:00:52]} Qe1 {[%emt 0:03:39]} 52. Qb6 {[%emt 0:00:30]} Kg7 {[%emt 0:00:33]} 53. a5 {[%emt 0:00:45]} Ne5 {[%emt 0:00:30]} 54. Qb7+ {[%emt 0:00:39]} Kh6 {[%emt 0:00:50]} 55. a6 {[%emt 0:00:14]} Nd3 {[%emt 0:01:15]} 56. Qc6+ {[%emt 0:00:24]} Kg5 {[%emt 0:00:42]} 57. Qd5+ {[%emt 0:00:20]} Ne5 {[%emt 0:00:27]} 58. a7 1-0

[Event "8. Arber-Schachopen 2019"]
[Site "Bodenmais"]
[Date "2019.08.04"]
[Round "9.17"]
[White "Fuchs, Michael"]
[Black "Eggeling, Philipp"]
[Result "0-1"]
[ECO "B10"]
[WhiteElo "2114"]
[BlackElo "1869"]
[Annotator "NA"]
[PlyCount "52"]
[EventDate "2019.07.27"]
[EventCountry "GER"]
[SourceTitle "playchess.com"]
[Source "ChessBase"]
[SourceQuality "1"]
[TimeControl "40/5400+30:1800+30"]

1. e4 {[%emt 0:00:00]} c6 {[%emt 0:00:00]} 2. Nc3 {[%emt 0:00:00]} d5 {[%emt 0:00:00]} 3. Nf3 {[%emt 0:00:00]} dxe4 {[%emt 0:00:34]} 4. Nxe4 {[%emt 0:00:00]} Bf5 {[%emt 0:00:19]} 5. Ng3 {[%emt 0:00:10]} Bg6 {[%emt 0:00:12]} 6. Bc4 {[%emt 0:03:32]} e6 {[%emt 0:00:52]} 7. Ne5 {[%emt 0:02:48]} Bd6 {[%emt 0:00:25]} 8. d4 {[%emt 0:01:55]} Bxe5 {[%emt 0:01:01]} 9. dxe5 {[%emt 0:00:05]} Qa5+ {[%emt 0:00:16]} 10. c3 {[%emt 0:02:25]} Qxe5+ {[%emt 0:00:13]} 11. Be3 {[%emt 0:00:04]} Nf6 {[%emt 0:01:16]} 12. O-O {[%emt 0:00:07]} Nbd7 {[%emt 0:00:20]} 13. Re1 {[%emt 0:00:37]} Qc7 {[%emt 0:00:15]} 14. f4 {[%emt 0:03:06]} O-O {[%emt 0:00:40]} 15. Qf3 {[%emt 0:01:01]} Nb6 {[%emt 0:01:39]} 16. Bb3 {[%emt 0:00:54]} Nbd5 {[%emt 0:00:29]} 17. Bd2 {[%emt 0:00:24]} Rad8 {[%emt 0:04:00]} 18. c4 {[%emt 0:00:32]} Ne7 {[%emt 0:00:36]} 19. Bc3 {[%emt 0:00:59]} Rd3 {[%emt 0:03:06]} 20. Re3 {[%emt 0:03:12]} Qb6 {[%emt 0:01:28]} 21. c5 {[%emt 0:05:27]} Qxc5 {[%emt 0:00:42]} 22. Bb4 {[%emt 0:00:04]} Qxe3+ {[%emt 0:00:45]} 23. Qxe3 {[%emt 0:00:24]} Rxe3 {[%emt 0:00:03]} 24. Bxe7 {[%emt 0:00:47]} Re8 {[%emt 0:00:34]} 25. Bc5 {[%emt 0:00:14]} Rd3 {[%emt 0:03:46]} 26. Bxa7 {[%emt 0:00:05]} Ra8 {[%emt 0:00:13]} 0-1

[Event "8. Arber-Schachopen 2019"]
[Site "Bodenmais"]
[Date "2019.08.04"]
[Round "9.18"]
[White "Brandsma, Romayn"]
[Black "Schmahl, Stephan"]
[Result "1/2-1/2"]
[ECO "C06"]
[WhiteElo "1957"]
[BlackElo "2101"]
[Annotator "NA"]
[PlyCount "23"]
[EventDate "2019.07.27"]
[EventCountry "GER"]
[SourceTitle "playchess.com"]
[Source "ChessBase"]
[SourceQuality "1"]
[TimeControl "40/5400+30:1800+30"]

1. e4 {[%emt 0:03:14]} e6 {[%emt 0:00:00]} 2. d4 {[%emt 0:00:03]} d5 {[%emt 0:00:00]} 3. Nd2 {[%emt 0:00:04]} Nf6 {[%emt 0:00:20]} 4. e5 {[%emt 0:00:08]} Nfd7 {[%emt 0:00:02]} 5. Bd3 {[%emt 0:00:06]} c5 {[%emt 0:00:08]} 6. c3 {[%emt 0:00:04]} Nc6 {[%emt 0:00:08]} 7. Ne2 {[%emt 0:00:03]} cxd4 {[%emt 0:00:15]} 8. cxd4 {[%emt 0:00:05]} f6 {[%emt 0:00:11]} 9. exf6 {[%emt 0:00:08]} Nxf6 {[%emt 0:00:04]} 10. O-O {[%emt 0:00:27]} Bd6 {[%emt 0:00:05]} 11. Nf3 {[%emt 0:00:06]} O-O {[%emt 0:00:24]} 12. Bf4 {[%emt 0:00:15]} 1/2-1/2

[Event "8. Arber-Schachopen 2019"]
[Site "Bodenmais"]
[Date "2019.08.04"]
[Round "9.19"]
[White "Bielmeier, Ludwig"]
[Black "Albrecht, Manuel"]
[Result "1-0"]
[ECO "A14"]
[WhiteElo "2083"]
[BlackElo "1833"]
[Annotator "NA"]
[PlyCount "121"]
[EventDate "2019.07.27"]
[EventCountry "GER"]
[SourceTitle "playchess.com"]
[Source "ChessBase"]
[SourceQuality "1"]
[TimeControl "40/5400+30:1800+30"]

1. g3 {[%emt 0:03:30]} d5 {[%emt 0:00:00]} 2. Bg2 {[%emt 0:00:08]} Nf6 {[%emt 0:00:00]} 3. c4 {[%emt 0:00:28]} e6 {[%emt 0:00:02]} 4. Nf3 {[%emt 0:00:16]} Be7 {[%emt 0:00:14]} 5. O-O {[%emt 0:00:12]} O-O {[%emt 0:00:04]} 6. Qc2 {[%emt 0:00:20]} dxc4 {[%emt 0:09:29]} 7. Qxc4 {[%emt 0:03:14]} a6 {[%emt 0:06:57]} 8. Qc2 {[%emt 0:00:55]} Nc6 {[%emt 0:03:11]} 9. Nc3 {[%emt 0:01:02]} Bd7 {[%emt 0:02:33]} 10. Rd1 {[%emt 0:01:22]} Qc8 {[%emt 0:02:10]} 11. d4 {[%emt 0:00:42]} Nb4 {[%emt 0:01:00]} 12. Qb1 {[%emt 0:00:46]} c5 {[%emt 0:03:38]} 13. dxc5 {[%emt 0:10:20]} Bxc5 {[%emt 0:00:19]} 14. a3 {[%emt 0:13:58]} Nbd5 {[%emt 0:05:43]} 15. Nxd5 {[%emt 0:01:40]} Nxd5 {[%emt 0:00:07]} 16. Ng5 {[%emt 0:05:33]} Nf6 {[%emt 0:05:04]} 17. b4 {[%emt 0:01:22]} Ba4 {[%emt 0:02:51]} 18. Bb2 {[%emt 0:02:57]} Bxd1 {[%emt 0:05:38]} 19. bxc5 {[%emt 0:14:20]} Qxc5 {[%emt 0:01:38]} 20. Bxf6 {[%emt 0:04:14]} Bc2 {[%emt 0:01:10]} 21. Qxb7 {[%emt 0:07:52]} gxf6 {[%emt 0:05:32]} 22. Nxf7 {[%emt 0:00:42]} Rab8 {[%emt 0:05:18]} 23. Nh6+ {[%emt 0:00:36]} Kh8 {[%emt 0:00:13]} 24. Qd7 {[%emt 0:11:02]} Qh5 {[%emt 0:05:42]} 25. Qd2 {[%emt 0:08:24]} Rb1+ {[%emt 0:10:30]} 26. Rxb1 {[%emt 0:00:12]} Bxb1 {[%emt 0:00:04]} 27. Bf3 {[%emt 0:02:58]} Qc5 {[%emt 0:07:39]} 28. Qb2 {[%emt 0:01:40]} Bg6 {[%emt 0:03:15]} 29. Ng4 {[%emt 0:00:15]} e5 {[%emt 0:00:34]} 30. h4 {[%emt 0:01:11]} h5 {[%emt 0:05:58]} 31. Ne3 {[%emt 0:00:17]} e4 {[%emt 0:01:29]} 32. Bg2 {[%emt 0:00:22]} Qb5 {[%emt 0:01:37]} 33. Qd4 {[%emt 0:01:05]} Qc6 {[%emt 0:01:52]} 34. Qb4 {[%emt 0:00:26]} Rc8 {[%emt 0:01:07]} 35. Kh2 {[%emt 0:00:22]} Qc5 {[%emt 0:02:05]} 36. Qb2 {[%emt 0:00:26]} Qc3 {[%emt 0:00:16]} 37. Qb7 {[%emt 0:00:18]} Qc6 {[%emt 0:00:27]} 38. Qe7 {[%emt 0:00:17]} Re8 {[%emt 0:01:28]} 39. Qa7 {[%emt 0:00:13]} Ra8 {[%emt 0:00:31]} 40. Qd4 {[%emt 0:00:19]} Re8 {[%emt 0:01:05]} 41. Bh3 {[%emt 0:31:36]} Re5 {[%emt 0:04:33]} 42. Bd7 {[%emt 0:00:00]} Qc5 {[%emt 0:03:18]} 43. Qb2 {[%emt 0:00:00]} Qc7 {[%emt 0:01:16]} 44. Bh3 {[%emt 0:00:00]} Kg7 {[%emt 0:00:17]} 45. Qb4 {[%emt 0:00:00]} Rc5 {[%emt 0:02:29]} 46. Bg2 {[%emt 0:00:00]} a5 {[%emt 0:00:23]} 47. Qd4 {[%emt 0:00:00]} Qc6 {[%emt 0:00:29]} 48. Bh3 {[%emt 0:00:00]} Rc3 {[%emt 0:02:58]} 49. Qa7+ {[%emt 0:00:00]} Qc7 {[%emt 0:01:24]} 50. Qa6 {[%emt 0:00:00]} Rxe3 {[%emt 0:04:14]} 51. fxe3 {[%emt 0:00:00]} f5 {[%emt 0:00:07]} 52. Qb5 {[%emt 0:00:00]} Kf6 {[%emt 0:00:42]} 53. Qb2+ {[%emt 0:00:00]} Kf7 {[%emt 0:00:24]} 54. Kg2 {[%emt 0:00:00]} Qc5 {[%emt 0:00:37]} 55. Kf2 {[%emt 0:00:00]} Qc7 {[%emt 0:00:53]} 56. Qb5 {[%emt 0:00:00]} Kf6 {[%emt 0:00:50]} 57. Qd5 {[%emt 0:00:00]} Ke7 {[%emt 0:01:54]} 58. Bxf5 {[%emt 0:00:12]} Bxf5 {[%emt 0:00:53]} 59. Qxf5 {[%emt 0:00:03]} Qc6 {[%emt 0:01:03]} 60. Qxa5 {[%emt 0:00:53]} Qf6+ {[%emt 0:00:56]} 61. Kg2 {[%emt 0:00:34]} 1-0

[Event "8. Arber-Schachopen 2019"]
[Site "Bodenmais"]
[Date "2019.08.04"]
[Round "9.20"]
[White "Weisheit, Erik"]
[Black "Schwenkreis, Thomas"]
[Result "1-0"]
[ECO "C41"]
[WhiteElo "1862"]
[BlackElo "2048"]
[Annotator "NA"]
[PlyCount "115"]
[EventDate "2019.07.27"]
[EventCountry "GER"]
[SourceTitle "playchess.com"]
[Source "ChessBase"]
[SourceQuality "1"]
[TimeControl "40/5400+30:1800+30"]

1. e4 {[%emt 0:00:00]} e5 {[%emt 0:00:00]} 2. Nf3 {[%emt 0:00:06]} d6 {[%emt 0:00:00]} 3. d4 {[%emt 0:00:17]} Nf6 {[%emt 0:00:00]} 4. dxe5 {[%emt 0:00:09]} Nxe4 {[%emt 0:00:00]} 5. Qd5 {[%emt 0:00:11]} Nc5 {[%emt 0:00:00]} 6. Bg5 {[%emt 0:00:11]} f6 {[%emt 0:03:42]} 7. exf6 {[%emt 0:02:02]} gxf6 {[%emt 0:00:01]} 8. Bh4 {[%emt 0:34:25]} Qe7+ {[%emt 0:03:01]} 9. Be2 {[%emt 0:01:01]} Be6 {[%emt 0:00:26]} 10. Qd4 {[%emt 0:00:26]} Bg7 {[%emt 0:01:49]} 11. Nc3 {[%emt 0:01:14]} O-O {[%emt 0:00:42]} 12. O-O-O {[%emt 0:02:37]} Qf7 {[%emt 0:01:54]} 13. Rhe1 {[%emt 0:01:48]} Nc6 14. Qf4 {[%emt 0:01:55]} Ne5 {[%emt 0:04:33]} 15. Nxe5 {[%emt 0:07:21]} dxe5 {[%emt 0:00:18]} 16. Qb4 {[%emt 0:00:46]} b6 {[%emt 0:00:44]} 17. Kb1 {[%emt 0:03:09]} a5 {[%emt 0:00:50]} 18. Qa3 {[%emt 0:00:19]} Rfd8 {[%emt 0:01:15]} 19. f4 {[%emt 0:00:46]} e4 {[%emt 0:04:00]} 20. Nb5 {[%emt 0:06:33]} Bf8 {[%emt 0:01:56]} 21. Qg3+ {[%emt 0:00:18]} Kh8 {[%emt 0:00:23]} 22. Rxd8 {[%emt 0:05:37]} Rxd8 {[%emt 0:00:01]} 23. Bh5 {[%emt 0:02:32]} Qe7 {[%emt 0:10:56]} 24. Nxc7 {[%emt 0:04:53]} Bg7 {[%emt 0:02:53]} 25. Nxe6 {[%emt 0:00:22]} Qxe6 {[%emt 0:00:02]} 26. a3 {[%emt 0:03:01]} Rc8 {[%emt 0:02:26]} 27. f5 {[%emt 0:02:33]} Qc6 {[%emt 0:01:11]} 28. Qc3 {[%emt 0:02:49]} Rf8 {[%emt 0:01:56]} 29. Bf2 {[%emt 0:01:17]} Qd5 {[%emt 0:01:14]} 30. Qh3 {[%emt 0:00:31]} Qd2 {[%emt 0:04:24]} 31. Bg6 {[%emt 0:03:48]} Bh6 {[%emt 0:02:20]} 32. Qh4 {[%emt 0:02:04]} Kg7 {[%emt 0:03:36]} 33. Be3 {[%emt 0:00:30]} Qxe1+ {[%emt 0:08:21]} 34. Qxe1 {[%emt 0:00:22]} Bxe3 {[%emt 0:01:09]} 35. Qxe3 {[%emt 0:01:05]} hxg6 {[%emt 0:00:02]} 36. b4 {[%emt 0:00:30]} axb4 {[%emt 0:00:39]} 37. axb4 {[%emt 0:00:10]} Na4 {[%emt 0:00:09]} 38. Qg3 {[%emt 0:02:42]} g5 {[%emt 0:05:36]} 39. h4 {[%emt 0:02:07]} e3 {[%emt 0:07:11]} 40. Qxe3 {[%emt 0:01:20]} gxh4 {[%emt 0:00:09]} 41. Qd4 {[%emt 0:30:14]} Rf7 {[%emt 0:31:10]} 42. Qg4+ {[%emt 0:00:42]} Kf8 {[%emt 0:00:18]} 43. Qxh4 {[%emt 0:00:06]} Nc3+ {[%emt 0:00:49]} 44. Kb2 {[%emt 0:00:16]} Nd5 {[%emt 0:00:39]} 45. Kb3 {[%emt 0:00:28]} Ne7 {[%emt 0:04:33]} 46. Qf2 {[%emt 0:01:01]} Nc8 {[%emt 0:02:52]} 47. Qd4 {[%emt 0:00:23]} Kg7 {[%emt 0:03:07]} 48. g4 {[%emt 0:00:19]} b5 {[%emt 0:05:02]} 49. g5 {[%emt 0:00:34]} Ne7 {[%emt 0:00:52]} 50. g6 {[%emt 0:02:40]} Nxf5 {[%emt 0:01:04]} 51. Qf4 {[%emt 0:00:08]} Re7 {[%emt 0:02:08]} 52. Qxf5 {[%emt 0:00:16]} Re5 {[%emt 0:00:00]} 53. Qg4 {[%emt 0:00:56]} Rg5 {[%emt 0:00:28]} 54. Qf4 {[%emt 0:00:06]} Kxg6 {[%emt 0:00:11]} 55. c4 {[%emt 0:00:19]} bxc4+ {[%emt 0:00:16]} 56. Qxc4 {[%emt 0:00:19]} f5 {[%emt 0:00:21]} 57. b5 {[%emt 0:00:19]} Rg1 {[%emt 0:04:04]} 58. Qg8+ {[%emt 0:00:20]} 1-0

[Event "8. Arber-Schachopen 2019"]
[Site "Bodenmais"]
[Date "2019.08.04"]
[Round "9.21"]
[White "Gruettner, Ralf"]
[Black "Vennemann, Juergen"]
[Result "1-0"]
[ECO "B13"]
[WhiteElo "2118"]
[BlackElo "1925"]
[Annotator "NA"]
[PlyCount "81"]
[EventDate "2019.07.27"]
[EventCountry "GER"]
[SourceTitle "playchess.com"]
[Source "ChessBase"]
[SourceQuality "1"]
[TimeControl "40/5400+30:1800+30"]

1. e4 {[%emt 0:00:00]} c6 {[%emt 0:00:00]} 2. d4 {[%emt 0:00:00]} d5 {[%emt 0:00:00]} 3. exd5 {[%emt 0:00:00]} cxd5 {[%emt 0:00:00]} 4. c4 {[%emt 0:00:00]} Nf6 {[%emt 0:00:26]} 5. Nc3 {[%emt 0:00:00]} Nc6 {[%emt 0:00:47]} 6. Bg5 {[%emt 0:00:52]} Be6 {[%emt 0:00:32]} 7. Nf3 {[%emt 0:00:59]} g6 {[%emt 0:00:17]} 8. Bxf6 {[%emt 0:07:21]} exf6 {[%emt 0:00:10]} 9. c5 {[%emt 0:00:40]} Bg7 {[%emt 0:02:19]} 10. Bb5 {[%emt 0:00:47]} O-O {[%emt 0:00:53]} 11. h3 {[%emt 0:03:22]} Re8 {[%emt 0:01:04]} 12. O-O {[%emt 0:00:20]} g5 {[%emt 0:00:53]} 13. Nh2 {[%emt 0:04:57]} f5 {[%emt 0:12:10]} 14. Bxc6 {[%emt 0:08:31]} bxc6 {[%emt 0:00:09]} 15. b4 {[%emt 0:23:45]} Qf6 {[%emt 0:05:47]} 16. Nf3 {[%emt 0:01:10]} Qg6 {[%emt 0:11:25]} 17. Re1 {[%emt 0:03:05]} Bd7 {[%emt 0:00:22]} 18. Qd2 {[%emt 0:12:44]} h6 {[%emt 0:11:57]} 19. Rxe8+ {[%emt 0:02:00]} Rxe8 {[%emt 0:00:09]} 20. Re1 {[%emt 0:04:56]} Re4 {[%emt 0:03:41]} 21. Nxe4 {[%emt 0:02:36]} fxe4 {[%emt 0:00:15]} 22. Ne5 {[%emt 0:01:28]} Bxe5 {[%emt 0:00:25]} 23. dxe5 {[%emt 0:00:02]} Qf5 {[%emt 0:02:22]} 24. Qd4 {[%emt 0:01:27]} Kf8 {[%emt 0:01:43]} 25. Re3 {[%emt 0:00:39]} a6 {[%emt 0:00:40]} 26. Ra3 {[%emt 0:02:49]} Bc8 {[%emt 0:00:08]} 27. Re3 {[%emt 0:06:17]} Ke7 {[%emt 0:00:15]} 28. a4 {[%emt 0:01:28]} Ke6 {[%emt 0:05:10]} 29. f3 {[%emt 0:01:11]} Qxe5 {[%emt 0:00:44]} 30. Qxe5+ {[%emt 0:00:08]} Kxe5 {[%emt 0:00:05]} 31. fxe4 {[%emt 0:00:15]} dxe4 {[%emt 0:01:35]} 32. Rb3 {[%emt 0:03:40]} Kd4 {[%emt 0:01:29]} 33. Rb1 {[%emt 0:03:22]} e3 {[%emt 0:05:27]} 34. b5 {[%emt 0:02:44]} axb5 {[%emt 0:01:21]} 35. axb5 {[%emt 0:00:01]} cxb5 {[%emt 0:01:47]} 36. Rxb5 {[%emt 0:00:34]} Kc3 {[%emt 0:06:44]} 37. c6 {[%emt 0:00:30]} Ba6 {[%emt 0:10:47]} 38. Ra5 {[%emt 0:00:21]} e2 {[%emt 0:00:42]} 39. Kf2 {[%emt 0:00:11]} Kd2 {[%emt 0:00:06]} 40. Re5 {[%emt 0:00:41]} f6 {[%emt 0:08:04]} 41. Re7 {[%emt 0:30:16]} 1-0

[Event "8. Arber-Schachopen 2019"]
[Site "Bodenmais"]
[Date "2019.08.04"]
[Round "9.22"]
[White "Jergler, Karl-Heinz"]
[Black "Peglau, Mirjam"]
[Result "1-0"]
[ECO "B12"]
[WhiteElo "2094"]
[BlackElo "1759"]
[Annotator "NA"]
[PlyCount "83"]
[EventDate "2019.07.27"]
[EventCountry "GER"]
[SourceTitle "playchess.com"]
[Source "ChessBase"]
[SourceQuality "1"]
[TimeControl "40/5400+30:1800+30"]

1. e4 {[%emt 0:00:00]} c6 {[%emt 0:00:00]} 2. d4 {[%emt 0:00:00]} d5 {[%emt 0:00:00]} 3. e5 {[%emt 0:00:00]} Bf5 {[%emt 0:00:00]} 4. Nf3 {[%emt 0:00:00]} e6 {[%emt 0:00:00]} 5. Be2 {[%emt 0:00:00]} Nd7 {[%emt 0:00:00]} 6. O-O {[%emt 0:00:12]} h6 {[%emt 0:00:15]} 7. Nbd2 {[%emt 0:02:22]} Bh7 {[%emt 0:01:08]} 8. Re1 {[%emt 0:09:33]} Ne7 {[%emt 0:00:18]} 9. Nf1 {[%emt 0:00:18]} Nf5 {[%emt 0:01:00]} 10. Ne3 {[%emt 0:02:45]} Qb6 {[%emt 0:02:18]} 11. Nxf5 {[%emt 0:00:59]} Bxf5 {[%emt 0:00:04]} 12. c3 {[%emt 0:00:13]} c5 {[%emt 0:01:27]} 13. Bd3 {[%emt 0:24:44]} Bg4 {[%emt 0:05:53]} 14. Be2 {[%emt 0:07:26]} Rc8 {[%emt 0:02:56]} 15. Qa4 {[%emt 0:02:18]} c4 {[%emt 0:04:01]} 16. Nh4 {[%emt 0:02:23]} Bxe2 {[%emt 0:00:43]} 17. Rxe2 {[%emt 0:01:47]} Be7 18. Nf3 {[%emt 0:00:11]} a6 {[%emt 0:01:15]} 19. Be3 {[%emt 0:03:48]} Qc6 {[%emt 0:01:26]} 20. Qc2 {[%emt 0:00:19]} b5 {[%emt 0:00:13]} 21. a3 {[%emt 0:05:48]} Nb6 {[%emt 0:02:34]} 22. Ree1 {[%emt 0:02:52]} O-O {[%emt 0:00:26]} 23. Nd2 {[%emt 0:01:18]} a5 {[%emt 0:02:27]} 24. Qd1 {[%emt 0:00:26]} b4 {[%emt 0:01:25]} 25. axb4 {[%emt 0:00:13]} axb4 {[%emt 0:00:00]} 26. Qg4 {[%emt 0:00:15]} Kh7 {[%emt 0:00:58]} 27. Nf3 {[%emt 0:02:23]} Na4 {[%emt 0:02:11]} 28. Qh5 {[%emt 0:10:29]} Nxb2 {[%emt 0:06:13]} 29. g4 {[%emt 0:03:01]} f5 {[%emt 0:00:58]} 30. exf6 {[%emt 0:00:35]} Rxf6 {[%emt 0:02:55]} 31. g5 {[%emt 0:03:32]} Rxf3 {[%emt 0:01:06]} 32. Qxf3 {[%emt 0:00:30]} hxg5 {[%emt 0:01:23]} 33. Ra7 {[%emt 0:03:16]} Rc7 {[%emt 0:17:10]} 34. Rea1 {[%emt 0:00:48]} bxc3 {[%emt 0:02:41]} 35. Rxc7 {[%emt 0:00:51]} Qxc7 {[%emt 0:00:02]} 36. Ra8 {[%emt 0:00:11]} Kg6 {[%emt 0:04:59]} 37. Rh8 {[%emt 0:00:13]} Nd3 {[%emt 0:03:21]} 38. Qh5+ {[%emt 0:02:41]} Kf5 {[%emt 0:00:02]} 39. Qf7+ {[%emt 0:00:20]} Ke4 {[%emt 0:00:50]} 40. Qxe6+ {[%emt 0:05:22]} Ne5 {[%emt 0:00:41]} 41. dxe5 {[%emt 0:31:20]} Qxe5 {[%emt 0:32:15]} 42. f3+ {[%emt 0:00:24]} 1-0

[Event "8. Arber-Schachopen 2019"]
[Site "Bodenmais"]
[Date "2019.08.04"]
[Round "9.24"]
[White "Navarro Gevers, Daniel"]
[Black "Mattes, Heinz"]
[Result "0-1"]
[ECO "A45"]
[WhiteElo "1813"]
[BlackElo "1953"]
[Annotator "NA"]
[PlyCount "62"]
[EventDate "2019.07.27"]
[EventCountry "GER"]
[SourceTitle "playchess.com"]
[Source "ChessBase"]
[SourceQuality "1"]
[TimeControl "40/5400+30:1800+30"]

1. d4 {[%emt 0:00:00]} Nf6 {[%emt 0:00:00]} 2. Bg5 {[%emt 0:00:00]} e6 {[%emt 0:03:37]} 3. e4 {[%emt 0:02:01]} Be7 {[%emt 0:03:53]} 4. Bd3 {[%emt 0:01:19]} d5 {[%emt 0:10:44]} 5. e5 {[%emt 0:01:32]} Nfd7 {[%emt 0:02:57]} 6. Be3 {[%emt 0:02:31]} c5 {[%emt 0:00:27]} 7. Qg4 {[%emt 0:02:34]} g6 {[%emt 0:01:53]} 8. c3 {[%emt 0:07:32]} Nc6 {[%emt 0:01:28]} 9. Nd2 {[%emt 0:01:57]} Qb6 {[%emt 0:04:14]} 10. b3 {[%emt 0:09:49]} cxd4 {[%emt 0:03:58]} 11. cxd4 {[%emt 0:01:46]} Qb4 {[%emt 0:02:03]} 12. Qf4 {[%emt 0:15:44]} Qc3 {[%emt 0:01:26]} 13. Rd1 {[%emt 0:07:05]} Qxd3 {[%emt 0:01:20]} 14. Ndf3 {[%emt 0:02:37]} Bb4+ {[%emt 0:00:44]} 15. Bd2 {[%emt 0:00:54]} Qe4+ {[%emt 0:04:51]} 16. Qxe4 {[%emt 0:00:10]} dxe4 {[%emt 0:00:06]} 17. Ng5 {[%emt 0:00:14]} Nxd4 {[%emt 0:00:35]} 18. Nxe4 {[%emt 0:02:36]} Nc2+ {[%emt 0:09:22]} 19. Kf1 {[%emt 0:01:28]} Nxe5 {[%emt 0:00:44]} 20. Bh6 {[%emt 0:04:51]} Nd7 {[%emt 0:08:26]} 21. Nf3 {[%emt 0:11:23]} Be7 {[%emt 0:02:10]} 22. g3 {[%emt 0:02:49]} Nb4 {[%emt 0:00:57]} 23. a3 {[%emt 0:00:50]} Nd5 {[%emt 0:00:20]} 24. b4 {[%emt 0:00:32]} N7f6 {[%emt 0:03:10]} 25. Nc5 {[%emt 0:01:44]} b6 {[%emt 0:00:55]} 26. Nb3 {[%emt 0:01:03]} Bb7 {[%emt 0:00:58]} 27. Kg2 {[%emt 0:00:15]} Ng4 {[%emt 0:02:39]} 28. Bg7 {[%emt 0:00:14]} Rg8 {[%emt 0:00:06]} 29. Bb2 {[%emt 0:00:10]} Bf6 {[%emt 0:00:17]} 30. Bxf6 {[%emt 0:00:34]} Ndxf6 {[%emt 0:01:27]} 31. Rhe1 {[%emt 0:00:09]} Nxh2 {[%emt 0:04:15]} 0-1